bitfinex-derivatives/quotes_BTCF0:USTF0_20210707
["timestamp","ask_amount","ask_price","bid_price","bid_amount"]
[1625660735464,5.31819088,34869.0,34866.0,0.50952976]
[1625660735824,5.31819088,34869.0,34867.0,0.00512873]
[1625660736188,5.31819088,34869.0,34867.0,4.03300841]
[1625660736366,5.31819088,34869.0,34868.0,0.50426128]
[1625660736607,5.31819088,34869.0,34868.0,0.50938423]
[1625660741053,5.31819088,34869.0,34868.0,0.50426128]
[1625660741352,5.31819088,34869.0,34868.0,0.50938428]
[1625660746592,5.31819088,34869.0,34868.0,0.005123]
[1625660747794,5.31819088,34869.0,34867.0,0.00512344]
[1625660750443,5.31819088,34869.0,34867.0,0.50979271]
[1625660750687,5.31819088,34869.0,34867.0,0.00512344]
[1625660750923,5.31819088,34869.0,34868.0,0.00512341]
[1625660751164,5.31819088,34869.0,34867.0,0.50977836]
[1625660751405,5.31819088,34869.0,34868.0,0.50995605]
[1625660753332,5.31819088,34869.0,34868.0,1.51960232]
[1625660756935,5.31819088,34869.0,34868.0,2.69884853]
[1625660757174,5.31819088,34869.0,34868.0,1.51960232]
[1625660757475,5.31819088,34869.0,34868.0,2.69954099]
[1625660763673,0.69049088,34869.0,34868.0,2.96159099]
[1625660763793,0.48115088,34869.0,34868.0,2.96159099]
[1625660764036,0.48115088,34869.0,34868.0,4.31086727]
[1625660764153,0.50064668,34871.0,34868.0,4.31086727]
[1625660764276,0.50072919,34875.0,34870.0,3.4465]
[1625660764393,0.50072919,34875.0,34874.0,0.24057544]
[1625660764513,0.50072919,34875.0,34874.0,2.93876353]
[1625660764755,0.50069045,34876.0,34874.0,2.93876353]
[1625660764877,0.50069045,34876.0,34874.0,2.94388495]
[1625660764997,0.50086014,34877.0,34875.0,2.69866737]
[1625660765116,0.50086014,34877.0,34875.0,2.91407872]
[1625660765296,0.50086014,34877.0,34876.0,2.70375247]
[1625660765475,0.50086014,34877.0,34876.0,6.85385247]
[1625660766381,0.74170766,34878.0,34876.0,6.85385247]
[1625660766499,0.24057544,34878.0,34877.0,2.69853335]
[1625660766680,0.24057544,34878.0,34877.0,2.70365432]
[1625660766800,0.74180671,34878.0,34877.0,2.70365432]
[1625660770472,0.74180671,34878.0,34877.0,2.94422976]
[1625660772211,0.74180671,34878.0,34877.0,3.01542976]
[1625660772632,1.74830254,34878.0,34877.0,3.01542976]
[1625660773111,1.74830254,34878.0,34877.0,1.83482142]
[1625660773833,2.92300535,34878.0,34877.0,1.83482142]
[1625660774013,2.92300535,34878.0,34877.0,1.82970045]
[1625660774254,2.92300535,34878.0,34877.0,1.83482206]
[1625660774378,2.92300535,34878.0,34877.0,0.82287205]
[1625660775882,7.34050535,34878.0,34877.0,0.82287205]
[1625660776481,7.34050535,34878.0,34877.0,1.83548625]
[1625660777260,7.34050535,34878.0,34877.0,1.90388625]
[1625660777923,7.34050535,34878.0,34877.0,3.08546434]
[1625660778162,6.16580254,34878.0,34877.0,3.08546434]
[1625660778342,1.74830254,34878.0,34877.0,3.08546434]
[1625660778643,2.92222346,34878.0,34877.0,1.90388625]
[1625660778884,2.92222346,34878.0,34877.0,3.08568956]
[1625660779544,2.92222346,34878.0,34877.0,1.90388625]
[1625660779783,2.92222346,34878.0,34877.0,3.08569931]
[1625660781287,2.92222346,34878.0,34877.0,1.90388625]
[1625660781586,2.42099219,34878.0,34877.0,1.90388625]
[1625660781767,4.26287626,34878.0,34877.0,1.90388625]
[1625660782848,4.93210169,34878.0,34877.0,2.57942611]
[1625660783148,3.59262574,34878.0,34877.0,2.57942611]
[1625660785129,3.59262574,34878.0,34877.0,3.76148591]
[1625660786332,3.59262574,34878.0,34877.0,2.57942611]
[1625660787294,4.93084962,34878.0,34877.0,2.57942611]
[1625660787774,3.59262574,34878.0,34877.0,2.57942611]
[1625660789101,3.92244574,34878.0,34877.0,2.33885067]
[1625660789226,5.2613317,34878.0,34877.0,1.32623647]
[1625660789339,5.27376995,34878.0,34877.0,1.32623647]
[1625660789459,6.77823145,34878.0,34877.0,0.14472161]
[1625660789819,6.77823145,34878.0,34877.0,0.07472161]
[1625660790118,7.27823145,34878.0,34877.0,0.07472161]
[1625660790239,7.27823145,34878.0,34871.0,0.67555173]
[1625660790481,4.17633076,34872.0,34869.0,0.67556463]
[1625660790659,3.32045753,34870.0,34869.0,1.01335949]
[1625660790779,3.56323753,34870.0,34869.0,1.01335949]
[1625660790901,3.56323753,34870.0,34869.0,1.68893501]
[1625660791019,8.40433753,34870.0,34869.0,1.69405126]
[1625660791205,9.74031214,34870.0,34869.0,1.69405126]
[1625660791379,8.40433753,34870.0,34869.0,1.69405126]
[1625660794506,9.74000853,34870.0,34869.0,0.68069177]
[1625660795167,9.74000853,34870.0,34869.0,0.00511625]
[1625660798892,9.74000853,34870.0,34869.0,0.68049946]
[1625660799377,9.74000853,34870.0,34869.0,0.00511625]
[1625660800213,9.74000853,34870.0,34868.0,0.68048374]
[1625660800453,4.17031452,34869.0,34868.0,0.68048374]
[1625660800572,4.17031452,34869.0,34867.0,0.67529694]
[1625660800872,1.33445394,34869.0,34868.0,0.00512381]
[1625660801112,4.16904127,34869.0,34868.0,0.00512381]
[1625660803157,5.80560632,34870.0,34868.0,0.00512381]
[1625660803398,2.83784686,34869.0,34868.0,0.68031115]
[1625660803698,2.83784686,34869.0,34868.0,0.67518734]
[1625660803998,2.83784686,34869.0,34868.0,0.68030926]
[1625660808507,4.17479148,34869.0,34868.0,0.00512192]
[1625660809592,4.17479148,34869.0,34867.0,0.00512192]
[1625660809951,1.33694462,34869.0,34868.0,0.00512195]
[1625660810130,4.17892575,34869.0,34868.0,0.00512195]
[1625660810310,4.17892575,34869.0,34867.0,0.00512195]
[1625660810611,2.84603153,34868.0,34867.0,0.00512195]
[1625660810852,2.84603153,34868.0,34867.0,0.68006218]
[1625660812471,2.84603153,34868.0,34867.0,0.00512195]
[1625660814271,1.67417558,34868.0,34867.0,0.67995906]
[1625660814570,2.84330329,34868.0,34867.0,0.67995906]
[1625660814811,2.84330329,34868.0,34867.0,0.00512195]
[1625660815470,2.84330329,34868.0,34865.0,0.67478168]
[1625660815591,2.84330329,34868.0,34867.0,0.00512055]
[1625660815831,1.33559918,34869.0,34866.0,0.67990819]
[1625660816012,1.33559918,34869.0,34867.0,0.00512053]
[1625660816130,1.16918093,34868.0,34867.0,0.00512053]
[1625660816371,2.83924495,34868.0,34867.0,0.00512053]
[1625660817153,1.67006402,34868.0,34867.0,0.67982144]
[1625660817515,1.67006402,34868.0,34867.0,0.00512053]
[1625660817516,2.8393249,34868.0,34867.0,0.00512053]
[1625660818055,2.8393249,34868.0,34867.0,0.6797705]
[1625660818056,1.67006402,34868.0,34867.0,0.6797705]
[1625660819317,1.75646402,34868.0,34867.0,0.6797705]
[1625660819437,1.67006402,34868.0,34867.0,0.6797705]
[1625660824666,1.99785402,34868.0,34867.0,0.6797705]
[1625660824966,0.32779,34868.0,34867.0,0.6797705]
[1625660825086,1.99952931,34868.0,34867.0,0.6797705]
[1625660828034,3.16983836,34868.0,34867.0,0.6797705]
[1625660828635,3.16983836,34868.0,34867.0,0.00512053]
[1625660829598,3.16983836,34868.0,34867.0,0.67992317]
[1625660830079,3.16983836,34868.0,34867.0,0.00512053]
[1625660831221,3.16983836,34868.0,34867.0,0.67994828]
[1625660832604,3.16983836,34868.0,34867.0,1.69264801]
[1625660836268,3.16983836,34868.0,34867.0,0.67994828]
[1625660836750,4.5092069,34868.0,34867.0,0.67994828]
[1625660837775,4.52166521,34868.0,34867.0,0.67994828]
[1625660838014,4.5092069,34868.0,34867.0,0.67994828]
[1625660838732,4.5216654,34868.0,34867.0,0.67994828]
[1625660838972,4.5092069,34868.0,34867.0,0.67994828]
[1625660839275,4.52166542,34868.0,34867.0,0.67994828]
[1625660841915,4.5092069,34868.0,34867.0,0.67994828]
[1625660842037,4.5092069,34868.0,34867.0,1.69363191]
[1625660842700,4.52166536,34868.0,34867.0,1.69363191]
[1625660842938,4.52166536,34868.0,34867.0,0.00512053]
[1625660843176,6.03118083,34868.0,34867.0,0.34312445]
[1625660845582,6.03118083,34868.0,34867.0,0.60607445]
[1625660845823,4.5092069,34868.0,34867.0,1.95863375]
[1625660846241,4.5092069,34868.0,34867.0,6.18303375]
[1625660846540,4.5092069,34868.0,34867.0,1.95863375]
[1625660846841,4.52166571,34868.0,34867.0,1.69568375]
[1625660847089,6.03387326,34868.0,34867.0,1.69568375]
[1625660847325,6.03387326,34868.0,34867.0,0.34341164]
[1625660847444,10.99877326,34868.0,34867.0,0.34341164]
[1625660847565,10.99877326,34868.0,34867.0,0.00512053]
[1625660848049,12.67583325,34868.0,34862.0,0.33832509]
[1625660848166,13.17583325,34868.0,34862.0,0.33832509]
[1625660848289,5.70050787,34863.0,34861.0,0.33833733]
[1625660848530,5.03673894,34862.0,34861.0,0.50764904]
[1625660848830,6.7284566,34862.0,34860.0,0.1693172]
[1625660849007,5.76023118,34861.0,34860.0,0.1693172]
[1625660849129,5.98763118,34861.0,34860.0,0.1693172]
[1625660849250,5.98763118,34861.0,34857.0,0.50736287]
[1625660849492,5.03232222,34858.0,34857.0,0.50736287]
[1625660849788,9.24542222,34858.0,34857.0,0.51247192]
[1625660850691,9.24542222,34858.0,34857.0,0.00510905]
[1625660850990,9.48599766,34858.0,34857.0,0.00510905]
[1625660851175,9.48599766,34858.0,34856.0,1.01983652]
[1625660851176,7.97633454,34858.0,34856.0,1.01983652]
[1625660851352,3.5255786,34857.0,34856.0,1.01983652]
[1625660851470,3.5255786,34857.0,34856.0,1.01472775]
[1625660852013,3.5255786,34857.0,34856.0,1.01983643]
[1625660854181,2.18252502,34857.0,34856.0,1.01983643]
[1625660856585,4.45367544,34858.0,34856.0,0.00510868]
[1625660856887,2.17893429,34857.0,34856.0,1.01862418]
[1625660857009,2.17893429,34857.0,34856.0,1.0135155]
[1625660857309,2.17893429,34857.0,34856.0,1.01863312]
[1625660857729,2.40714429,34857.0,34856.0,1.01863312]
[1625660860073,2.40714429,34857.0,34856.0,0.00511762]
[1625660860435,3.74733201,34857.0,34856.0,0.00511762]
[1625660861217,3.74733201,34857.0,34855.0,0.00511802]
[1625660861336,3.74733201,34857.0,34856.0,0.33763541]
[1625660861757,3.74733201,34857.0,34856.0,0.00511804]
[1625660861998,2.40714429,34857.0,34856.0,0.00511804]
[1625660862118,2.17893429,34857.0,34855.0,0.005118]
[1625660862238,2.17723266,34856.0,34855.0,0.005118]
[1625660862838,1.00488949,34856.0,34855.0,1.01795475]
[1625660863139,2.41789123,34856.0,34855.0,1.01795475]
[1625660863319,1.24546493,34856.0,34855.0,1.01795475]
[1625660863439,1.24546493,34856.0,34855.0,1.01283675]
[1625660863560,2.41759962,34856.0,34854.0,1.01267522]
[1625660863679,2.41759962,34856.0,34855.0,0.00511795]
[1625660863801,1.24546493,34856.0,34855.0,0.00511795]
[1625660863984,1.24546493,34856.0,34854.0,1.01267522]
[1625660864341,0.24057544,34856.0,34855.0,0.00511791]
[1625660864521,0.24057544,34856.0,34854.0,1.01267522]
[1625660864643,2.41785089,34856.0,34854.0,1.01267522]
[1625660864764,2.41785089,34856.0,34855.0,0.00511792]
[1625660864882,1.41294165,34856.0,34855.0,0.00511792]
[1625660865064,2.4183249,34856.0,34855.0,0.00511792]
[1625660865725,1.24595869,34856.0,34855.0,0.00511792]
[1625660866386,1.24595869,34856.0,34854.0,1.26015522]
[1625660866508,2.41967691,34856.0,34854.0,1.26015522]
[1625660866685,1.41429366,34856.0,34855.0,0.0051179]
[1625660866926,1.24650773,34856.0,34855.0,0.0051179]
[1625660867711,1.24650773,34856.0,34855.0,1.01753441]
[1625660867891,0.24057544,34856.0,34855.0,2.19861665]
[1625660868370,0.57655169,34856.0,34855.0,2.19861665]
[1625660870063,0.24057544,34856.0,34855.0,2.19861665]
[1625660872163,0.24057544,34856.0,34855.0,1.01753441]
[1625660872164,1.24687221,34856.0,34855.0,1.01753441]
[1625660872404,1.24687221,34856.0,34855.0,0.0051179]
[1625660876190,1.24687221,34856.0,34855.0,0.3067679]
[1625660877512,1.24687221,34856.0,34855.0,1.31902027]
[1625660878716,0.24057544,34856.0,34855.0,2.50001096]
[1625660879136,0.57562647,34856.0,34855.0,2.50001096]
[1625660879258,0.57562647,34856.0,34855.0,2.7405864]
[1625660879738,1.07816841,34856.0,34855.0,3.2467333]
[1625660880459,0.74311738,34856.0,34855.0,3.2467333]
[1625660880700,1.0782025,34856.0,34855.0,3.2467333]
[1625660881180,0.74311738,34856.0,34855.0,3.2467333]
[1625660881358,1.07823906,34856.0,34855.0,3.2467333]
[1625660881598,0.74311738,34856.0,34855.0,3.2467333]
[1625660884242,1.0782202,34856.0,34855.0,3.2467333]
[1625660886284,0.74311738,34856.0,34855.0,3.2467333]
[1625660886524,1.07820764,34856.0,34855.0,3.2467333]
[1625660887186,1.07820764,34856.0,34855.0,4.59699487]
[1625660887427,0.74311738,34856.0,34855.0,4.59699487]
[1625660887666,1.07807585,34856.0,34855.0,4.59699487]
[1625660888328,0.74311738,34856.0,34855.0,4.59699487]
[1625660889660,1.07774812,34856.0,34855.0,4.59699487]
[1625660890202,0.82656921,34856.0,34855.0,4.59699487]
[1625660890380,0.74272575,34856.0,34855.0,4.59699487]
[1625660890862,0.82662022,34856.0,34855.0,4.59699487]
[1625660892246,0.74272575,34856.0,34855.0,4.59699487]
[1625660892724,0.82651953,34856.0,34855.0,4.59699487]
[1625660893265,0.49188879,34856.0,34855.0,4.59699487]
[1625660893745,0.74309617,34856.0,34855.0,4.59699487]
[1625660894287,0.74278073,34856.0,34855.0,4.59699487]
[1625660902162,0.74278073,34856.0,34855.0,6.11900401]
[1625660908288,1.41265325,34856.0,34855.0,6.79576606]
[1625660909733,0.24057544,34856.0,34855.0,2.06935248]
[1625660910034,1.41379355,34856.0,34855.0,6.80700049]
[1625660913041,2.41834104,34856.0,34855.0,6.80700049]
[1625660913519,1.41379355,34856.0,34855.0,6.80700049]
[1625660915324,2.41823808,34856.0,34855.0,6.80700049]
[1625660917667,1.41379355,34856.0,34855.0,6.80700049]
[1625660917908,2.41864405,34856.0,34855.0,6.80700049]
[1625660920916,1.41379355,34856.0,34855.0,6.80700049]
[1625660921457,2.41867027,34856.0,34855.0,6.80700049]
[1625660922782,1.41379355,34856.0,34855.0,6.80700049]
[1625660927411,2.41918671,34856.0,34855.0,6.80700049]
[1625660939620,2.17861127,34856.0,34855.0,6.56642505]
[1625660940220,3.83601844,34856.0,34855.0,6.80700049]
[1625660942387,8.59061844,34856.0,34855.0,6.80700049]
[1625660946113,3.83601844,34856.0,34855.0,6.80700049]
[1625660954532,2.65976215,34856.0,34855.0,6.80700049]
[1625660954715,3.83344777,34856.0,34855.0,6.80700049]
[1625660955077,3.35229689,34856.0,34855.0,6.80700049]
[1625660955196,1.35079689,34856.0,34855.0,6.80700049]
[1625660955323,0.17711127,34856.0,34855.0,6.81547394]
[1625660955438,1.34186915,34860.0,34855.0,6.81547394]
[1625660955559,0.25201191,34857.0,34855.0,8.5118518]
[1625660955678,0.25201191,34857.0,34855.0,8.5989518]
[1625660955801,1.5102258,34867.0,34856.0,3.231181]
[1625660955802,0.0841245,34860.0,34856.0,3.231181]
[1625660955923,0.0841245,34860.0,34856.0,4.58596322]
[1625660956040,1.34347333,34867.0,34856.0,4.58596322]
[1625660956166,0.03478765,43477.0,34856.0,4.58596322]
[1625660956167,0.08413377,34861.0,34859.0,4.57218183]
[1625660956281,0.08413377,34861.0,34860.0,0.72172632]
[1625660956400,1.34362136,34868.0,34860.0,5.29386069]
[1625660956580,1.58443307,34869.0,34867.0,2.87869223]
[1625660956700,1.58443307,34869.0,34867.0,3.12430223]
[1625660956882,1.58443307,34869.0,34868.0,1.2529981]
[1625660957001,1.58443307,34869.0,34868.0,1.25810086]
[1625660957124,0.24057544,34869.0,34868.0,1.25810086]
[1625660957424,0.24057544,34869.0,34868.0,2.7820666]
[1625660957724,0.24057544,34869.0,34868.0,1.25810086]
[1625660958145,0.24057544,34869.0,34868.0,2.78049777]
[1625660958265,0.24057544,34869.0,34868.0,3.26164865]
[1625660959347,0.24057544,34869.0,34868.0,1.73925174]
[1625660962952,0.52898544,34869.0,34868.0,1.73925174]
[1625660963075,0.52898544,34869.0,34868.0,0.48625364]
[1625660964814,0.24057544,34869.0,34868.0,0.48625364]
[1625660965414,0.53194544,34869.0,34868.0,0.48625364]
[1625660969142,0.24057544,34869.0,34868.0,0.48625364]
[1625660970882,0.24057544,34869.0,34868.0,0.77897364]
[1625660972384,0.24057544,34869.0,34868.0,0.48625364]
[1625660975573,1.41433234,34869.0,34868.0,0.48625364]
[1625660976533,1.41433234,34869.0,34868.0,0.48905364]
[1625660978337,0.24057544,34869.0,34868.0,0.48905364]
[1625660979600,0.24057544,34869.0,34868.0,1.67036568]
[1625660982186,0.24057544,34869.0,34868.0,0.48905364]
[1625660982913,1.41291214,34869.0,34868.0,0.48905364]
[1625660983691,1.67829214,34869.0,34868.0,0.00790276]
[1625660984058,1.69077634,34869.0,34868.0,0.00790276]
[1625660984176,3.02897627,34869.0,34868.0,0.00790276]
[1625660984419,4.77473798,34869.0,34868.0,0.00790276]
[1625660985796,5.77805555,34869.0,34868.0,0.00790276]
[1625660987059,4.27286928,34869.0,34868.0,0.00790276]
[1625660988260,5.77667285,34869.0,34868.0,0.00790276]
[1625660990003,5.77667285,34869.0,34868.0,0.0028]
[1625660991325,5.77667285,34869.0,34868.0,0.0079023]
[1625660991564,5.77667285,34869.0,34868.0,0.0028]
[1625660991927,5.77667285,34869.0,34868.0,0.00790226]
[1625660992166,5.77667285,34869.0,34868.0,0.0028]
[1625660992705,5.77667285,34869.0,34868.0,0.00790217]
[1625660992946,5.76418865,34869.0,34868.0,0.0028]
[1625660993188,5.77667283,34869.0,34868.0,0.00790213]
[1625660993730,5.77667283,34869.0,34868.0,0.0028]
[1625660996854,4.27286926,34869.0,34868.0,0.0028]
[1625660996974,4.26038508,34869.0,34868.0,0.0028]
[1625660997095,5.75764086,34869.0,34868.0,0.0028]
[1625660997217,5.77012587,34869.0,34868.0,0.0028]
[1625660997996,5.75764086,34869.0,34868.0,0.0028]
[1625660998599,4.26038508,34869.0,34868.0,0.0028]
[1625660999561,4.26038508,34869.0,34868.0,0.00790206]
[1625661000101,5.75640231,34869.0,34868.0,0.0028]
[1625661005816,5.84330231,34869.0,34868.0,0.0028]
[1625661006059,5.76888868,34869.0,34868.0,0.0028]
[1625661007681,5.76888868,34869.0,34861.0,1.0130223]
[1625661007923,2.16394348,34862.0,34861.0,1.0130223]
[1625661008102,2.43993348,34862.0,34860.0,1.01306329]
[1625661008222,2.43993348,34862.0,34861.0,0.00510303]
[1625661008524,2.92108436,34862.0,34861.0,0.00510303]
[1625661009063,7.14918436,34862.0,34861.0,0.00510303]
[1625661009785,8.48115299,34862.0,34861.0,0.00510303]
[1625661010326,8.48115299,34862.0,34859.0,0.00510348]
[1625661010446,3.49438044,34860.0,34859.0,0.00510348]
[1625661010566,3.73495588,34860.0,34858.0,0.0051038]
[1625661010686,3.49531118,34859.0,34858.0,0.0051038]
[1625661010927,3.49531118,34859.0,34853.0,1.01321873]
[1625661011168,1.16415324,34854.0,34853.0,1.01321873]
[1625661011288,2.16202263,34854.0,34852.0,1.01323871]
[1625661011469,2.16164366,34853.0,34851.0,1.01329165]
[1625661011707,2.16123709,34852.0,34851.0,1.01329165]
[1625661012070,2.16123709,34852.0,34851.0,1.0183959]
[1625661012194,0.99750683,34852.0,34851.0,0.00510425]
[1625661012494,0.24414,34854.0,34851.0,0.00510425]
[1625661012676,4.91832632,34852.0,34851.0,0.00510425]
[1625661012797,5.91527208,34852.0,34851.0,0.00510425]
[1625661012916,5.91527208,34852.0,34850.0,1.01268835]
[1625661013157,5.91527208,34852.0,34851.0,0.00510442]
[1625661013276,4.91832632,34852.0,34851.0,0.00510442]
[1625661013519,5.91534191,34852.0,34851.0,0.00510442]
[1625661014725,5.91534191,34852.0,34850.0,0.00510337]
[1625661015024,0.99446357,34851.0,34850.0,0.00510337]
[1625661015206,1.65748176,34851.0,34850.0,0.67987945]
[1625661015986,0.66301819,34851.0,34850.0,0.00510337]
[1625661017320,0.88291003,34851.0,34850.0,0.67951961]
[1625661017558,0.22078,34851.0,34850.0,0.67951961]
[1625661018460,0.22078,34851.0,34850.0,0.00510337]
[1625661019661,0.88228905,34851.0,34850.0,0.00510337]
[1625661020084,0.22078,34851.0,34850.0,0.00510337]
[1625661020323,0.22078,34851.0,34849.0,0.6791634]
[1625661020624,0.24057544,34850.0,34849.0,0.67406041]
[1625661020862,0.24057544,34850.0,34849.0,0.67916337]
[1625661023450,0.24057544,34850.0,34849.0,0.00510296]
[1625661024355,0.24057544,34850.0,34849.0,0.6790294]
[1625661025859,0.24057544,34850.0,34849.0,0.67392644]
[1625661025980,0.24057544,34850.0,34849.0,0.67902929]
[1625661026399,0.24057544,34850.0,34849.0,0.67392644]
[1625661026521,0.24057544,34850.0,34849.0,0.67902936]
[1625661026820,0.24057544,34850.0,34849.0,0.67392644]
[1625661027061,0.24057544,34850.0,34849.0,0.67902938]
[1625661029468,0.24057544,34850.0,34849.0,1.68963926]
[1625661031810,0.24057544,34850.0,34849.0,0.67902938]
[1625661032593,0.24057544,34850.0,34849.0,1.68978263]
[1625661033680,0.24057544,34850.0,34849.0,0.67902938]
[1625661034642,0.48211544,34850.0,34849.0,0.67902938]
[1625661035665,0.48211544,34850.0,34849.0,0.67392644]
[1625661035784,0.24057544,34850.0,34849.0,0.67392644]
[1625661035904,0.24057544,34850.0,34849.0,0.67903151]
[1625661036807,0.24057544,34850.0,34849.0,0.00510507]
[1625661036925,0.50905544,34850.0,34849.0,0.00510507]
[1625661038547,0.50905544,34850.0,34849.0,0.67934637]
[1625661038968,0.50905544,34850.0,34849.0,0.00510507]
[1625661039451,0.24057544,34850.0,34849.0,0.00510507]
[1625661039570,0.24057544,34850.0,34849.0,0.679336]
[1625661040420,0.24057544,34850.0,34849.0,1.69104919]
[1625661041856,0.24057544,34850.0,34849.0,2.87131941]
[1625661042516,0.24057544,34850.0,34849.0,1.69104919]
[1625661042757,0.24057544,34850.0,34849.0,2.87183632]
[1625661043959,0.24057544,34850.0,34849.0,1.69104919]
[1625661044200,0.24057544,34850.0,34849.0,2.87191351]
[1625661045162,0.24057544,34850.0,34849.0,1.69104919]
[1625661045402,0.24057544,34850.0,34849.0,2.19716581]
[1625661046544,0.24057544,34850.0,34849.0,3.37823833]
[1625661047267,0.24057544,34850.0,34849.0,2.19716581]
[1625661048773,0.24057544,34850.0,34849.0,3.37838196]
[1625661052861,0.24057544,34850.0,34849.0,4.72880568]
[1625661058696,0.73511614,34850.0,34849.0,4.72880568]
[1625661061284,0.24057544,34850.0,34849.0,0.00510507]
[1625661061523,0.73502955,34850.0,34849.0,4.73565603]
[1625661062485,1.39485175,34850.0,34849.0,4.73565603]
[1625661063986,2.38516066,34850.0,34849.0,4.73565603]
[1625661068080,3.54143747,34850.0,34849.0,4.73565603]
[1625661081303,3.30086203,34850.0,34849.0,4.73565603]
[1625661081843,4.26316379,34850.0,34849.0,4.73565603]
[1625661086657,4.26316379,34850.0,34849.0,6.26002534]
[1625661088519,4.26316379,34850.0,34849.0,4.73565603]
[1625661089659,4.26316379,34850.0,34849.0,6.26003643]
[1625661092728,3.10688698,34850.0,34849.0,6.26003643]
[1625661097415,4.27295855,34850.0,34849.0,6.26003643]
[1625661099761,4.27295855,34850.0,34849.0,4.73565603]
[1625661102102,4.27295855,34850.0,34849.0,6.25998433]
[1625661103244,4.27295855,34850.0,34849.0,4.73565603]
[1625661106551,5.60602806,34850.0,34849.0,4.73565603]
[1625661109855,5.60602806,34850.0,34849.0,3.38407004]
[1625661111659,7.10559715,34850.0,34849.0,3.38407004]
[1625661111899,7.11808653,34850.0,34849.0,3.38407004]
[1625661112141,7.10559715,34850.0,34849.0,2.2014323]
[1625661116043,7.10559715,34850.0,34849.0,1.18774281]
[1625661116341,7.11809547,34850.0,34849.0,1.18774281]
[1625661116943,7.11809547,34850.0,34849.0,0.17434848]
[1625661117423,7.11809547,34850.0,34848.0,0.50773094]
[1625661117663,0.01250007,34849.0,34848.0,0.50773094]
[1625661117903,6.19286239,34849.0,34848.0,0.50773094]
[1625661118083,6.19286239,34849.0,34848.0,0.51282975]
[1625661118202,6.19286239,34849.0,34848.0,0.50773094]
[1625661119708,6.19286239,34849.0,34848.0,0.16924413]
[1625661120607,6.18036232,34849.0,34848.0,0.16924413]
[1625661120851,6.18036232,34849.0,34848.0,0.50761428]
[1625661121209,6.18036232,34849.0,34848.0,0.16924413]
[1625661121567,6.18036232,34849.0,34847.0,0.50750937]
[1625661121806,6.16349776,34848.0,34847.0,0.50750937]
[1625661123552,6.16349776,34848.0,34847.0,0.16913864]
[1625661125477,6.16349776,34848.0,34847.0,0.02913864]
[1625661125719,6.16349776,34848.0,34844.0,1.01459621]
[1625661125720,6.16349776,34848.0,34844.0,0.33813941]
[1625661125839,6.17600158,34848.0,34844.0,0.33813941]
[1625661125960,6.15339604,34845.0,34843.0,0.84534925]
[1625661126079,6.49379604,34845.0,34843.0,0.84534925]
[1625661126196,5.1377205,34844.0,34843.0,0.84534925]
[1625661126557,5.1377205,34844.0,34841.0,0.44914632]
[1625661126679,5.6377205,34844.0,34828.0,1.69067034]
[1625661126799,0.5,34842.0,34834.0,1.3174769]
[1625661126925,1.98803699,34835.0,34832.0,0.50728736]
[1625661127038,2.25678699,34835.0,34832.0,0.50728736]
[1625661127159,1.48863221,34833.0,34818.0,1.52205556]
[1625661127279,3.8004,34819.0,34818.0,1.52205556]
[1625661127399,4.11311,34819.0,34818.0,1.52205556]
[1625661127761,4.11311,34819.0,34818.0,0.00510075]
[1625661128002,4.11311,34819.0,34810.0,0.057]
[1625661128120,0.72172632,34811.0,34806.0,0.24057544]
[1625661128239,0.95727632,34811.0,34806.0,0.24057544]
[1625661128483,0.95727632,34811.0,34807.0,0.00510157]
[1625661128722,0.31271,34819.0,34809.0,4.8469]
[1625661128845,0.057,34828.0,34809.0,4.8469]
[1625661128962,0.26875,34835.0,34810.0,0.057]
[1625661128963,1.64725871,34833.0,34810.0,0.057]
[1625661129202,1.73241543,34834.0,34810.0,0.057]
[1625661129321,1.73241543,34834.0,34811.0,0.00510097]
[1625661129683,0.0848,34834.0,34811.0,0.00510097]
[1625661129923,1.64574029,34836.0,34811.0,0.00510097]
[1625661130163,0.24057544,34828.0,34826.0,0.24057544]
[1625661134311,0.24057544,34831.0,34826.0,0.24057544]
[1625661134433,0.24057544,34831.0,34826.0,0.53324544]
[1625661136181,0.24057544,34831.0,34830.0,0.24057544]
[1625661140441,0.24057544,34831.0,34830.0,0.36057543]
[1625661141646,0.32297044,34831.0,34830.0,0.36057543]
[1625661142305,0.24057544,34831.0,34830.0,0.36057543]
[1625661143384,0.24057544,34831.0,34830.0,0.38657543]
[1625661144649,0.32297087,34831.0,34830.0,0.38657543]
[1625661147958,0.24057544,34831.0,34830.0,0.38657543]
[1625661148436,0.24057544,34831.0,34830.0,0.39167775]
[1625661148679,0.08260001,34833.0,34830.0,0.39167775]
[1625661148919,0.08270606,34834.0,34830.0,0.39167775]
[1625661149041,0.08270606,34834.0,34831.0,0.00510224]
[1625661149159,0.32329716,34835.0,34831.0,0.00510224]
[1625661149701,0.32329716,34835.0,34834.0,0.026]
[1625661149820,0.32329716,34835.0,34834.0,0.14599999]
[1625661150300,0.32329716,34835.0,34834.0,0.38657543]
[1625661150422,0.24057544,34835.0,34834.0,0.38657543]
[1625661150541,0.24057544,34835.0,34834.0,0.3916775]
[1625661151085,0.32343658,34835.0,34834.0,0.3916775]
[1625661153728,0.08286114,34835.0,34834.0,0.3916775]
[1625661153968,0.08295861,34836.0,34834.0,0.3916775]
[1625661154210,0.08298104,34837.0,34834.0,0.3916775]
[1625661154328,0.08298104,34837.0,34835.0,0.00510324]
[1625661154450,0.08298104,34837.0,34836.0,0.24057544]
[1625661154870,0.08298104,34837.0,34836.0,0.24567858]
[1625661155112,0.24057544,34840.0,34836.0,0.24567858]
[1625661155474,0.24057544,34840.0,34836.0,0.27167858]
[1625661155594,0.24057544,34840.0,34836.0,0.38657543]
[1625661156075,0.24057544,34840.0,34839.0,0.026]
[1625661156314,0.24057544,34840.0,34839.0,0.14599999]
[1625661156435,0.24057544,34840.0,34839.0,0.38657543]
[1625661156738,1.23425279,34840.0,34839.0,0.38657543]
[1625661157457,2.39381984,34840.0,34839.0,0.38657543]
[1625661159864,2.39381984,34840.0,34839.0,0.39167136]
[1625661160943,2.4063291,34840.0,34839.0,0.38657543]
[1625661161424,3.73226197,34840.0,34839.0,0.38657543]
[1625661162925,2.4063291,34840.0,34839.0,0.38657543]
[1625661163588,2.4063291,34840.0,34839.0,0.39167146]
[1625661166591,3.72255304,34840.0,34839.0,0.39167146]
[1625661171041,3.4819776,34840.0,34839.0,0.39167146]
[1625661171162,2.1532444,34840.0,34839.0,0.39167146]
[1625661171404,0.99367735,34840.0,34839.0,0.39167146]
[1625661171645,0.99085119,34842.0,34839.0,0.47590213]
[1625661171886,0.99149526,34843.0,34840.0,0.08422692]
[1625661172126,0.99149526,34843.0,34841.0,0.00509509]
[1625661172244,0.99149526,34843.0,34841.0,0.29867509]
[1625661172365,0.99149526,34843.0,34842.0,0.026]
[1625661172485,0.99149526,34843.0,34842.0,0.26657544]
[1625661172605,0.99149526,34843.0,34842.0,0.38657543]
[1625661172726,0.99149526,34843.0,34842.0,0.39167021]
[1625661173148,0.99149526,34843.0,34842.0,4.54757021]
[1625661175492,0.99219192,34844.0,34842.0,4.54757021]
[1625661175732,0.99240552,34845.0,34842.0,4.54757021]
[1625661175973,0.99240552,34845.0,34844.0,0.08427229]